[Event "Polish University-ch Teams 2024"]
[Site "Lublin"]
[Date "2024.02.24"]
[Round "5.19"]
[White "Grochol, Kamil"]
[Black "Pacan-Milej, Kosma"]
[Result "0-1"]
[ECO "A45"]
[WhiteElo "2117"]
[BlackElo "2438"]
[Annotator "TA"]
[PlyCount "68"]
[EventDate "2024.02.22"]
[EventType "team-tourn"]
[EventCountry "POL"]
[SourceTitle "playchess.com"]
[Source "ChessBase"]
[SourceQuality "1"]
[TimeControl "900+5"]

{[%evp 9,68,0,0,0,0,-19,13,9,2,-5,36,25,26,25,35,15,40,42,91,0,0,0,0,0,7,0,16,0,0,-30,-19,-17,-22,-171,-135,-133,-66,-83,-41,-110,-128,-116,-108,-259,-247,-272,-266,-268,-264,-260,-267,-418,-416,-806,-770,-1031,-1015,-29971,-29970,-29980,-29979]} 1. d4 {[%emt 0:00:03]} Nf6 {[%emt 0:00:05]} 2. Bf4 {[%emt 0:00:02]} g6 {[%emt 0:00:04]} 3. Nc3 {[%emt 0:00:03]} d5 {[%emt 0:00:02]} 4. e3 {[%emt 0:00:02]} Bg7 {[%emt 0:00:06]} 5. h4 {[%emt 0:00:02]} h5 {[%emt 0:00:02]} 6. Nf3 {[%emt 0:00:03]} O-O {[%emt 0:00:06][%cal Oc7c5]} 7. Be2 {[%emt 0:00:17]} a6 {[%emt 0:00:09]} 8. Ne5 {[%emt 0:01:32] The position is equal.} c5 {[%emt 0:00:41]} 9. Qd2 {[%emt 0:00:32]} cxd4 {[%emt 0:01:12]} 10. exd4 {[%emt 0:00:03]} Nc6 {[%emt 0:00:02]} 11. O-O-O {[%emt 0:01:15]} Qa5 {[%emt 0:00:36]} 12. Kb1 {[%emt 0:00:14]} Bf5 {[%emt 0:00:14]} 13. f3 {[%emt 0:01:04]} Nb4 {[%emt 0:00:56]} (13... Rac8 $14) 14. Nd3 {[%emt 0:00:09]} (14. Rc1 $1 $16) 14... Bxd3 $11 {[%emt 0:00:17]} 15. Bxd3 {[%emt 0:00:06]} Rac8 {[%emt 0:00:02]} 16. a3 {[%emt 0:03:41]} Nxd3 {[%emt 0:00:02]} 17. Qxd3 {[%emt 0:00:03]} Rc4 {[%emt 0:00:07]} 18. Ne2 {[%emt 0:01:59]} b5 {[%emt 0:01:34]} 19. c3 {[%emt 0:00:22]} Qb6 $1 {[%emt 0:00:02]} 20. Be5 {[%emt 0:02:26][%cal Og2g4]} a5 {[%emt 0:01:05]} 21. b4 {[%emt 0:00:45]} (21. g4 $11 {and White is okay.}) 21... axb4 {[%emt 0:00:14]} 22. axb4 {[%emt 0:00:06][%cal Og2g4]} Ra8 {[%emt 0:00:10]} (22... Rfc8 $17 {aiming for ...Bh6.} 23. Kb2 Bh6) 23. Kb2 $1 $15 {[%emt 0:00:17]} Rcc8 {[%emt 0:01:40]} 24. Ra1 {[%emt 0:00:04] [#]} (24. Bxf6 $1 $15 Bxf6 25. Ra1) 24... Nd7 $1 $36 {[%emt 0:00:45][%mdl 2048] Black has strong initiative.} 25. Bxg7 {[%emt 0:00:34]} Kxg7 {[%emt 0:00:03]} 26. Rxa8 $2 {[%emt 0:00:04]} (26. g4 $17 {might work better.} Rh8 27. Qe3) 26... Rxa8 $19 {[%emt 0:00:01]} 27. Ra1 {[%emt 0:00:03] Against Qa6} Rxa1 {[%emt 0:00:09]} 28. Kxa1 {[%emt 0:00:01][%mdl 4096] Endgame. [#] KQN-KQN} Qa6+ $1 {[%emt 0:00:02]} 29. Kb1 {[%emt 0:00:18]} Nb6 {[%emt 0:00:01]} 30. Qc2 {[%emt 0:01:00]} (30. f4 {was called for.} Nc4 31. f5) 30... Nc4 {[%emt 0:00:07]} 31. Qa2 {[%emt 0:00:02]} (31. Qd3 $142) 31... Qe6 {[%emt 0:00:02] ...Qe3 would now be deadly.} 32. Nc1 {[%emt 0:00:18]} Qe1 {[%emt 0:00:17]} 33. Qe2 {[%emt 0:00:14]} Qxc3 {[%emt 0:00:07]} 34. Nd3 {[%emt 0:00:05]} Nd2+ {[%emt 0:00:06] Weighted Error Value: White=0.76/Black=0.14 (very precise) .  Mistake:       	White=6     	Black=2      Inaccurate:     	White=2     	Black=3      OK:         	White=6     	Black=9      Best:        	---       	Black=2      Strong:       	White=1     	Black=3} 0-1

[Event "Polish University-ch Teams 2024"]
[Site "Lublin"]
[Date "2024.02.24"]
[Round "5.20"]
[White "Redzisz, Michal"]
[Black "Lis, Mateusz"]
[Result "1/2-1/2"]
[ECO "E17"]
[WhiteElo "2229"]
[BlackElo "2019"]
[Annotator "TA"]
[PlyCount "65"]
[EventDate "2024.02.22"]
[EventType "team-tourn"]
[EventCountry "POL"]
[SourceTitle "playchess.com"]
[Source "ChessBase"]
[SourceQuality "1"]
[TimeControl "900+5"]

{[%evp 18,65,10,0,-5,-2,22,0,0,-26,0,0,0,0,0,-5,2,0,6,0,0,0,0,0,0,0,10,0,0,0,7,4,5,0,0,0,5,0,0,0,0,0,0,0,0,0,0,0,0,0]} 1. d4 {[%emt 0:00:01]} d5 {[%emt 0:00:01]} 2. c4 {[%emt 0:00:01]} e6 {[%emt 0:00:01]} 3. Nf3 {[%emt 0:00:01]} Nf6 {[%emt 0:00:01]} 4. g3 {[%emt 0:00:01]} Nbd7 {[%emt 0:00:46]} 5. Nbd2 {[%emt 0:00:03]} b6 {[%emt 0:00:05]} 6. Bg2 {[%emt 0:00:16]} Bb7 {[%emt 0:00:03]} 7. O-O {[%emt 0:00:13]} Be7 {[%emt 0:00:04]} 8. b3 {[%emt 0:00:01]} O-O {[%emt 0:00:03]} 9. Bb2 {[%emt 0:00:00]} c5 {[%emt 0:00:06]} 10. cxd5 {[%emt 0:00:11]} Bxd5 {[%emt 0:00:10]} 11. Rc1 {[%emt 0:00:06]} cxd4 {[%emt 0:00:16]} 12. Bxd4 {[%emt 0:00:09]} Rc8 {[%emt 0:00:08]} 13. Rc2 {[%emt 0:02:55]} Rxc2 14. Qxc2 {[%emt 0:00:01] The position is equal.} Qa8 {[%emt 0:00:23]} 15. Rc1 {[%emt 0:01:52]} Ba3 {[%emt 0:00:04]} 16. Bb2 {[%emt 0:00:04]} Bxb2 {[%emt 0:00:04]} 17. Qxb2 {[%emt 0:00:01]} Rc8 {[%emt 0:00:02]} 18. Rxc8+ {[%emt 0:01:04]} Qxc8 {[%emt 0:00:01]} 19. Ne5 {[%emt 0:00:01]} Bxg2 {[%emt 0:01:25]} 20. Kxg2 {[%emt 0:00:01]} Qb7+ {[%emt 0:00:04]} 21. Ndf3 {[%emt 0:00:56]} Qd5 {[%emt 0:00:03]} 22. Nxd7 {[%emt 0:00:02]} Nxd7 $11 {[%emt 0:00:04][%mdl 4096] Endgame. KQN-KQN} 23. Qc2 {[%emt 0:01:08]} Qb7 {[%emt 0:01:35] Prevents Qc7} 24. Kg1 {[%emt 0:01:59]} h6 {[%emt 0:00:04]} 25. h4 {[%emt 0:00:01]} Nf6 {[%emt 0:01:17]} 26. Ne5 {[%emt 0:00:17]} Qd5 {[%emt 0:02:29]} 27. Qc7 {[%emt 0:02:58]} (27. Nc6 {simplifies} Qd7 28. b4 b5 29. a3) 27... Qd1+ {[%emt 0:02:32]} 28. Kg2 {[%emt 0:00:03]} Qxe2 {[%emt 0:00:06]} 29. Qxf7+ {[%emt 0:00:19]} Kh7 {[%emt 0:00:14]} 30. Qg6+ {[%emt 0:00:11]} Kg8 $1 {[%emt 0:00:02]} 31. Qf7+ {[%emt 0:00:00]} Kh7 {[%emt 0:00:01]} 32. Qg6+ {[%emt 0:01:12]} Kg8 $1 {[%emt 0:00:01]} 33. Qf7+ {[%emt 0:00:04] A balanced but interesting game.   Weighted Error Value: White=0.04 (flawless) /Black=0.03 (flawless) .  Inaccurate:     	White=1     	---        OK:         	White=8     	Black=11     Strong:       	---       	Black=2} 1/2-1/2

[Event "Polish University-ch Teams 2024"]
[Site "Lublin"]
[Date "2024.02.24"]
[Round "5.21"]
[White "Sulkowski, Andrzej"]
[Black "Galuszka, Tomasz"]
[Result "0-1"]
[ECO "D36"]
[WhiteElo "1797"]
[BlackElo "2181"]
[Annotator "RC"]
[PlyCount "64"]
[EventDate "2024.02.22"]
[EventType "team-tourn"]
[EventCountry "POL"]
[SourceTitle "playchess.com"]
[Source "ChessBase"]
[SourceQuality "1"]
[TimeControl "900+5"]

1. d4 {[%emt 0:00:03]} d5 {[%emt 0:00:02]} 2. c4 {[%emt 0:00:01]} e6 {[%emt 0:00:01]} 3. cxd5 {[%emt 0:00:02]} exd5 {[%emt 0:00:02]} 4. Nc3 {[%emt 0:00:01]} Nf6 {[%emt 0:00:01]} 5. Bg5 {[%emt 0:00:04]} Be7 {[%emt 0:00:02]} 6. e3 {[%emt 0:00:10]} O-O {[%emt 0:00:04]} 7. Bd3 {[%emt 0:00:09]} c6 {[%emt 0:00:02]} 8. Qc2 {[%emt 0:00:08]} Nbd7 {[%emt 0:00:01]} 9. Nge2 {[%emt 0:00:05]} Re8 {[%emt 0:00:03]} 10. O-O {[%emt 0:00:09]} Nf8 {[%emt 0:00:02]} 11. f3 {[%emt 0:00:45]} Be6 {[%emt 0:00:02]} 12. e4 {[%emt 0:00:38]} dxe4 {[%emt 0:01:27]} 13. fxe4 {[%emt 0:00:05]} Ng4 {[%emt 0:00:07]} 14. Bxe7 {[%emt 0:00:24]} Qxe7 {[%emt 0:00:03]} 15. Rf3 {[%emt 0:01:30]} c5 {[%emt 0:00:02]} 16. d5 {[%emt 0:02:52]} Bd7 {[%emt 0:00:02]} 17. Ng3 {[%emt 0:00:48]} c4 {[%emt 0:03:12]} 18. Bf1 {[%emt 0:00:15]} Qh4 {[%emt 0:00:14]} 19. h3 {[%emt 0:00:29]} Ne5 {[%emt 0:00:02]} 20. Re3 {[%emt 0:00:44]} Nfg6 {[%emt 0:01:47]} 21. Rae1 {[%emt 0:01:29]} b5 {[%emt 0:00:13]} 22. Nf5 {[%emt 0:00:44]} Qf6 {[%emt 0:00:15]} 23. Qf2 {[%emt 0:00:47]} Qb6 {[%emt 0:01:34]} 24. Rg3 {[%emt 0:01:01]} Qxf2+ {[%emt 0:00:26]} 25. Kxf2 {[%emt 0:00:01]} b4 {[%emt 0:00:02]} 26. Nd1 {[%emt 0:00:28]} Bxf5 {[%emt 0:00:13]} 27. exf5 {[%emt 0:03:28]} Nf4 {[%emt 0:00:01]} 28. Re4 {[%emt 0:00:00]} Nxd5 {[%emt 0:01:43]} 29. Bxc4 {[%emt 0:00:00]} Nf6 {[%emt 0:00:06]} 30. Rd4 {[%emt 0:00:00]} Rad8 {[%emt 0:00:12]} 31. Rxd8 {[%emt 0:00:00]} Rxd8 {[%emt 0:00:02]} 32. Bb3 {[%emt 0:00:06]} Ne4+ {[%emt 0:05:40]} 0-1

[Event "Polish University-ch Teams 2024"]
[Site "Lublin"]
[Date "2024.02.24"]
[Round "5.23"]
[White "Brozek, Wojciech"]
[Black "Dziendziel, Mateusz"]
[Result "0-1"]
[ECO "B77"]
[WhiteElo "1549"]
[BlackElo "1975"]
[Annotator "NA"]
[PlyCount "57"]
[EventDate "2024.02.22"]
[EventType "team-tourn"]
[EventCountry "POL"]
[SourceTitle "playchess.com"]
[Source "ChessBase"]
[SourceQuality "1"]
[TimeControl "900+5"]

1. e4 {[%emt 0:00:01]} c5 {[%emt 0:00:01]} 2. Nf3 {[%emt 0:00:04]} d6 {[%emt 0:00:01]} 3. d4 {[%emt 0:00:03]} cxd4 {[%emt 0:00:02]} 4. Nxd4 {[%emt 0:00:01]} Nf6 {[%emt 0:00:01]} 5. Nc3 {[%emt 0:00:03]} g6 {[%emt 0:00:05]} 6. Be3 {[%emt 0:00:06]} Bg7 {[%emt 0:00:02]} 7. f3 {[%emt 0:00:16]} O-O {[%emt 0:00:02]} 8. Bc4 {[%emt 0:00:03]} Nc6 {[%emt 0:00:01]} 9. Qd2 {[%emt 0:00:08]} Nxd4 {[%emt 0:00:03]} 10. Bxd4 {[%emt 0:00:02]} Be6 {[%emt 0:00:01]} 11. Nd5 {[%emt 0:00:57]} Bxd5 {[%emt 0:00:13]} 12. Bxd5 {[%emt 0:00:25]} Nxd5 {[%emt 0:00:10]} 13. Bxg7 {[%emt 0:00:04]} Kxg7 {[%emt 0:00:02]} 14. exd5 {[%emt 0:00:16]} Qb6 {[%emt 0:00:15]} 15. O-O-O {[%emt 0:00:19]} Rac8 {[%emt 0:02:53]} 16. h4 {[%emt 0:00:31]} h5 {[%emt 0:00:16]} 17. g4 {[%emt 0:01:01]} Rh8 {[%emt 0:00:02]} 18. Kb1 {[%emt 0:01:49]} Rc4 {[%emt 0:02:34]} 19. Qe2 {[%emt 0:01:30]} Qc7 {[%emt 0:02:12]} 20. Rd2 {[%emt 0:00:23]} b5 {[%emt 0:00:14]} 21. Rh2 {[%emt 0:03:41]} a5 {[%emt 0:00:10]} 22. g5 {[%emt 0:00:59]} Rc8 {[%emt 0:00:21]} 23. Qf2 {[%emt 0:00:29]} Qc5 {[%emt 0:00:29]} 24. Qxc5 {[%emt 0:00:37]} R8xc5 {[%emt 0:00:09]} 25. Rhe2 {[%emt 0:00:39]} Rxh4 {[%emt 0:00:09]} 26. b4 {[%emt 0:00:10]} Rhc4 {[%emt 0:06:47]} 27. bxc5 Rxc5 {[%emt 0:00:00]} 28. Kc1 {[%emt 0:00:11]} Rc7 {[%emt 0:00:00]} 29. Re3 {[%emt 0:00:17]} 0-1

[Event "Polish University-ch Teams 2024"]
[Site "Lublin"]
[Date "2024.02.24"]
[Round "5.24"]
[White "Sloniewska, Alicja"]
[Black "Michalak, Wiktoria"]
[Result "1-0"]
[ECO "D10"]
[WhiteElo "1685"]
[BlackElo "1522"]
[Annotator "NA"]
[PlyCount "191"]
[EventDate "2024.02.22"]
[EventType "team-tourn"]
[EventCountry "POL"]
[SourceTitle "playchess.com"]
[Source "ChessBase"]
[SourceQuality "1"]
[TimeControl "900+5"]

1. d4 {[%emt 0:00:01]} Nf6 {[%emt 0:00:06]} 2. c4 {[%emt 0:00:01]} c6 {[%emt 0:00:05]} 3. Nc3 {[%emt 0:00:03]} d5 {[%emt 0:00:01]} 4. cxd5 {[%emt 0:00:05]} cxd5 {[%emt 0:00:01]} 5. Bf4 {[%emt 0:00:15]} Nh5 {[%emt 0:00:10]} 6. Bg3 {[%emt 0:00:23]} Nc6 {[%emt 0:00:07]} 7. e3 {[%emt 0:00:01]} Nxg3 {[%emt 0:00:04]} 8. hxg3 {[%emt 0:00:02]} Qb6 {[%emt 0:00:31]} 9. Qb3 {[%emt 0:02:12]} Qxb3 {[%emt 0:01:02]} 10. axb3 {[%emt 0:00:02]} e6 {[%emt 0:00:12]} 11. Nf3 {[%emt 0:00:23]} Bd7 {[%emt 0:00:14]} 12. Be2 {[%emt 0:00:29]} Bb4 {[%emt 0:00:13]} 13. O-O {[%emt 0:00:05]} O-O {[%emt 0:00:08]} 14. Bb5 {[%emt 0:00:51]} f6 {[%emt 0:00:12]} 15. Rfc1 {[%emt 0:00:46]} g5 {[%emt 0:00:10]} 16. Na4 {[%emt 0:00:23]} Kg7 {[%emt 0:00:48]} 17. Nc5 {[%emt 0:00:15]} Bxc5 {[%emt 0:00:02]} 18. Rxc5 {[%emt 0:00:14]} h5 {[%emt 0:00:40]} 19. Bxc6 {[%emt 0:01:20]} Bxc6 {[%emt 0:00:02]} 20. b4 {[%emt 0:00:04]} a6 {[%emt 0:00:10]} 21. Nd2 {[%emt 0:00:25]} Rac8 {[%emt 0:00:54]} 22. Rac1 {[%emt 0:00:09]} Bd7 {[%emt 0:00:44]} 23. Rc7 {[%emt 0:00:18]} Rxc7 {[%emt 0:00:55]} 24. Rxc7 {[%emt 0:00:01]} Rf7 {[%emt 0:00:07]} 25. Rxb7 {[%emt 0:00:38]} e5 {[%emt 0:00:09]} 26. dxe5 {[%emt 0:00:46]} fxe5 {[%emt 0:00:48]} 27. Nf3 {[%emt 0:00:08]} Kf6 {[%emt 0:00:28]} 28. Rb6+ {[%emt 0:00:06]} Kf5 {[%emt 0:00:03]} 29. Rxa6 {[%emt 0:00:11]} g4 {[%emt 0:00:11]} 30. Nd2 {[%emt 0:00:31]} Bb5 {[%emt 0:00:24]} 31. Rd6 {[%emt 0:00:29]} Rc7 {[%emt 0:01:16]} 32. Rxd5 {[%emt 0:00:26]} Rc1+ {[%emt 0:00:28]} 33. Kh2 {[%emt 0:00:04]} Ba4 {[%emt 0:00:36]} 34. f4 {[%emt 0:00:54]} gxf3 {[%emt 0:00:05]} 35. Nxf3 {[%emt 0:00:01]} Bd1 {[%emt 0:00:49]} 36. Rxe5+ {[%emt 0:00:03]} Kg6 {[%emt 0:00:09]} 37. Nd4 {[%emt 0:00:31]} Rb1 {[%emt 0:00:11]} 38. b3 {[%emt 0:00:14]} Kf6 {[%emt 0:00:35]} 39. Rd5 {[%emt 0:00:31]} Rb2 {[%emt 0:00:32]} 40. b5 {[%emt 0:00:14]} Bxb3 {[%emt 0:00:07]} 41. Nxb3 {[%emt 0:00:18]} Rxb3 {[%emt 0:00:02]} 42. Rxh5 {[%emt 0:00:01]} Rxe3 {[%emt 0:00:02]} 43. b6 {[%emt 0:00:04]} Rb3 {[%emt 0:00:08]} 44. Rh6+ {[%emt 0:00:06]} Kg5 {[%emt 0:00:11]} 45. Rc6 {[%emt 0:00:05]} Kg4 {[%emt 0:00:14]} 46. Rg6+ {[%emt 0:00:06]} Kf5 {[%emt 0:00:05]} 47. Rh6 {[%emt 0:00:02]} Kg5 {[%emt 0:00:02]} 48. Rd6 {[%emt 0:00:05]} Kg4 {[%emt 0:00:05]} 49. Rd4+ {[%emt 0:00:05]} Kg5 {[%emt 0:00:04]} 50. Kh3 {[%emt 0:00:15]} Rxb6 {[%emt 0:00:03]} 51. Rd5+ {[%emt 0:00:01]} Kg6 {[%emt 0:00:07]} 52. g4 {[%emt 0:00:01]} Rb1 {[%emt 0:00:06]} 53. Kg3 {[%emt 0:00:09]} Rb4 {[%emt 0:00:03]} 54. Kh4 {[%emt 0:00:03]} Rb1 {[%emt 0:00:05]} 55. Rd6+ {[%emt 0:00:02]} Kg7 {[%emt 0:00:02]} 56. g5 {[%emt 0:00:08]} Rg1 {[%emt 0:00:13]} 57. g3 {[%emt 0:00:05]} Rh1+ {[%emt 0:00:04]} 58. Kg4 {[%emt 0:00:01]} Rf1 {[%emt 0:00:41]} 59. Kh5 {[%emt 0:00:17]} Rh1+ {[%emt 0:00:02]} 60. Kg4 {[%emt 0:00:00]} Rf1 {[%emt 0:00:02]} 61. g6 {[%emt 0:00:07]} Rg1 {[%emt 0:00:15]} 62. Kf4 {[%emt 0:00:05]} Rf1+ {[%emt 0:00:02]} 63. Kg5 {[%emt 0:00:01]} Rg1 {[%emt 0:00:06]} 64. Rd7+ {[%emt 0:00:02]} Kg8 {[%emt 0:00:02]} 65. g4 {[%emt 0:00:04]} Rf1 {[%emt 0:00:06]} 66. g7 {[%emt 0:00:07]} Rg1 {[%emt 0:00:27]} 67. Kf5 {[%emt 0:00:06]} Rg2 {[%emt 0:00:26]} 68. g5 {[%emt 0:00:04]} Rb2 {[%emt 0:00:31]} 69. Kg6 {[%emt 0:00:13]} Rb6+ {[%emt 0:00:04]} 70. Kh5 {[%emt 0:00:04]} Rb1 {[%emt 0:00:08]} 71. Kh6 {[%emt 0:00:20]} Rb6+ {[%emt 0:00:09]} 72. Kh5 {[%emt 0:00:04]} Rb1 {[%emt 0:00:01]} 73. Re7 {[%emt 0:00:21]} Rc1 {[%emt 0:00:26]} 74. Kg6 {[%emt 0:00:34]} Rc6+ {[%emt 0:00:04]} 75. Kf5 {[%emt 0:00:02]} Rc5+ {[%emt 0:00:05]} 76. Kf4 {[%emt 0:00:04]} Rc4+ {[%emt 0:00:03]} 77. Kf5 {[%emt 0:00:08]} Rc5+ {[%emt 0:00:01]} 78. Kg6 {[%emt 0:00:28]} Rc6+ {[%emt 0:00:01]} 79. Kh5 {[%emt 0:00:01]} Rc1 {[%emt 0:00:03]} 80. Rd7 {[%emt 0:00:01]} Rb1 {[%emt 0:00:05]} 81. Rc7 {[%emt 0:01:23]} Rd1 {[%emt 0:00:06]} 82. Kg4 {[%emt 0:00:15]} Rg1+ {[%emt 0:00:03]} 83. Kf5 {[%emt 0:00:02]} Rb1 {[%emt 0:00:11]} 84. Re7 {[%emt 0:00:26]} Rb5+ {[%emt 0:00:08]} 85. Kg4 {[%emt 0:00:01]} Rb1 {[%emt 0:00:06]} 86. Kh5 {[%emt 0:00:01]} Rc1 {[%emt 0:00:08]} 87. Kg6 {[%emt 0:00:22]} Rc6+ {[%emt 0:00:02]} 88. Kf5 {[%emt 0:00:01]} Rc1 {[%emt 0:00:08]} 89. Rd7 {[%emt 0:00:10]} Rc5+ {[%emt 0:00:04]} 90. Kf6 {[%emt 0:00:06]} Rc6+ {[%emt 0:00:03]} 91. Kf5 {[%emt 0:00:06]} Rc5+ {[%emt 0:00:00]} 92. Kg4 {[%emt 0:00:00]} Rc1 {[%emt 0:00:02]} 93. Ra7 {[%emt 0:00:01]} Rg1+ {[%emt 0:00:04]} 94. Kf5 {[%emt 0:00:01]} Rf1+ {[%emt 0:00:02]} 95. Kg6 {[%emt 0:00:01]} Rf7 {[%emt 0:00:21]} 96. Ra8+ {[%emt 0:00:02]} 1-0

[Event "Polish University-ch Teams 2024"]
[Site "Lublin"]
[Date "2024.02.25"]
[Round "6.1"]
[White "Marczuk, Dominik"]
[Black "Janik, Igor"]
[Result "1-0"]
[ECO "A10"]
[WhiteElo "2283"]
[BlackElo "2499"]
[Annotator "TA"]
[PlyCount "139"]
[EventDate "2024.02.22"]
[EventType "team-tourn"]
[EventCountry "POL"]
[SourceTitle "playchess.com"]
[Source "ChessBase"]
[SourceQuality "1"]
[TimeControl "900+5"]

{[%evp 36,139,259,263,398,287,262,245,287,293,296,291,329,318,296,316,343,355,394,381,402,300,287,176,172,84,222,200,195,170,177,170,285,274,264,191,281,279,382,256,409,395,387,409,379,402,479,474,513,509,526,544,775,743,661,693,1600,834,921,461,652,645,735,723,696,745,1046,756,843,847,1110,1081,1124,1067,1084,1031,5414,5066,29982,712,671,666,1293,1217,1158,1138,1050,1022,1975,974,29968,2642,29974,29974,29986,29987,29990,29990,29992,29992,29992,29990,29990,29991,29992,29993]} 1. c4 {[%emt 0:00:02]} a6 {[%emt 0:02:24]} 2. Nf3 {[%emt 0:00:07]} b5 {[%emt 0:00:01]} 3. b3 {[%emt 0:00:03]} Bb7 {[%emt 0:00:01]} 4. e3 {[%emt 0:00:04]} bxc4 {[%emt 0:00:07]} 5. bxc4 {[%emt 0:00:03]} Nf6 {[%emt 0:00:04]} 6. Nc3 {[%emt 0:00:02] A10: English Opening: Unusual Replies for Black.} e6 {[%emt 0:00:09]} 7. Rb1 $146 {[%emt 0:00:13]} ({Predecessor:} 7. Be2 Be7 8. Rb1 Ra7 9. O-O O-O 10. d4 Ne4 11. Nxe4 Bxe4 12. Bd3 Bxd3 13. Qxd3 {½-½ Krivonosov,O (2449)-Klabis,R (2218) Panevezys op-A 26th 2013 (9)}) 7... Qc8 {[%emt 0:00:12]} 8. Be2 {[%emt 0:00:31]} Nc6 {[%emt 0:00:05]} 9. O-O {[%emt 0:00:03]} Be7 {[%emt 0:00:03]} 10. d4 {[%emt 0:00:10]} O-O {[%emt 0:00:03]} 11. a3 {[%emt 0:01:08]} Nd8 {[%emt 0:00:42]} 12. Qd3 {[%emt 0:03:24]} d6 {[%emt 0:00:07]} 13. e4 {[%emt 0:00:12]} Nd7 {[%emt 0:00:02]} 14. Be3 {[%emt 0:00:45]} f5 {[%emt 0:00:21]} 15. exf5 {[%emt 0:01:19]} exf5 {[%emt 0:00:02]} 16. Rfe1 {[%emt 0:00:19]} Nf6 {[%emt 0:00:22]} 17. d5 {[%emt 0:00:45]} Nf7 {[%emt 0:00:02]} 18. Nd4 {[%emt 0:00:32]} Ne5 {[%emt 0:00:26]} 19. Qxf5 {[%emt 0:00:56]} Kh8 {[%emt 0:00:35]} (19... c5 $142) 20. Qxc8 {[%emt 0:00:15]} Bxc8 {[%emt 0:00:01]} 21. h3 {[%emt 0:00:01]} Rf7 {[%emt 0:00:33]} 22. f4 {[%emt 0:00:36]} Ng6 {[%emt 0:00:02]} 23. Ne6 {[%emt 0:01:18]} Bf8 {[%emt 0:00:01]} 24. f5 {[%emt 0:02:11]} Ne5 {[%emt 0:00:29]} 25. g4 {[%emt 0:00:02]} Ne8 {[%emt 0:00:36]} 26. Bd4 {[%emt 0:00:07]} Kg8 {[%emt 0:00:11]} 27. Kg2 {[%emt 0:00:04]} g6 {[%emt 0:00:06]} 28. fxg6 {[%emt 0:00:10]} Nxg6 {[%emt 0:00:16]} 29. Rf1 {[%emt 0:00:27]} Rxf1 {[%emt 0:00:13]} 30. Rxf1 {[%emt 0:00:01]} (30. Kxf1 $18 {Hoping for Nxf8.} Bxe6 31. dxe6) 30... Be7 {[%emt 0:00:00]} (30... Bxe6 $16 31. dxe6 c5) 31. Bd3 {[%emt 0:00:22]} c5 {[%emt 0:00:01]} 32. Be3 {[%emt 0:00:16]} Ne5 {[%emt 0:00:09]} 33. Be2 {[%emt 0:00:01]} Ng7 {[%emt 0:00:29]} (33... Ra7 {is a better defense.} 34. Ng5 Rb7) 34. Nxg7 {[%emt 0:00:16]} Kxg7 {[%emt 0:00:01]} 35. Bf4 {[%emt 0:00:11]} Nf7 {[%emt 0:00:17]} (35... Ng6 {was worth a try.} 36. Bg3 Rb8) 36. Rb1 $18 {[%emt 0:00:12]} Ra7 {[%emt 0:00:41]} 37. Ne4 {[%emt 0:00:03]} Bd7 {[%emt 0:00:50]} (37... Rb7 {might work better.} 38. Rxb7 Bxb7) 38. Rb6 $18 {[%emt 0:00:15]} Bd8 {[%emt 0:00:01]} 39. Rb8 {[%emt 0:00:05]} Bc7 {[%emt 0:00:01]} 40. Rb1 {[%emt 0:00:05]} Ba4 {[%emt 0:00:07]} 41. Bd3 {[%emt 0:00:03]} h6 {[%emt 0:00:16]} 42. Kg3 {[%emt 0:00:02]} Kf8 {[%emt 0:00:28]} 43. h4 {[%emt 0:00:01]} Ke7 {[%emt 0:00:01]} 44. g5 {[%emt 0:00:08]} hxg5 {[%emt 0:00:01]} 45. hxg5 Ra8 46. Kf2 {[%emt 0:00:16]} Rg8 {[%emt 0:00:40]} 47. Rg1 {[%emt 0:00:01]} Nh8 {[%emt 0:00:16]} (47... Bd8 $142 48. Rb1 (48. g6 Ne5 $18) 48... Be8) 48. Nf6 $18 {[%emt 0:00:07]} Rf8 {[%emt 0:00:02]} 49. Rh1 {[%emt 0:00:11]} Kd8 {[%emt 0:00:22]} 50. Rh7 {[%emt 0:00:04]} Be8 {[%emt 0:00:01]} 51. Kg3 {[%emt 0:00:14]} Bf7 {[%emt 0:00:28]} 52. Rg7 {[%emt 0:00:08]} Ke7 {[%emt 0:00:16]} 53. Nh7 {[%emt 0:00:07]} Rg8 {[%emt 0:00:38]} 54. Rxg8 {[%emt 0:00:03]} Bxg8 {[%emt 0:00:01]} 55. g6 {[%emt 0:00:02]} Ba5 {[%emt 0:00:01]} 56. Bg5+ {[%emt 0:00:02]} Ke8 {[%emt 0:00:01]} 57. Bf6 {[%emt 0:00:05]} (57. Nf6+ $142 Kf8 58. Bh6+ Ke7 59. Nxg8+ Kd8 60. Bg5+ Kc7 61. g7 Nf7 62. Ne7) 57... Nxg6 $18 {[%emt 0:00:07]} 58. Bxg6+ {[%emt 0:00:01]} Kd7 {[%emt 0:05:23]} 59. Ng5 {[%emt 0:00:12]} Bd2 {[%emt 0:00:00]} 60. Bf5+ {[%emt 0:00:02]} Kc7 {[%emt 0:00:00]} 61. Kf3 {[%emt 0:00:05]} a5 {[%emt 0:00:00]} 62. Be7 {[%emt 0:00:02]} Bc3 {[%emt 0:00:00]} 63. Ke4 {[%emt 0:00:06]} (63. Be6 $142 Be5 64. Bxg8 Kd7 65. Bf8 Bf6 66. Be6+ Kc7 67. Nf7 Bh4 68. Bxd6+ Kb6 69. Bf4) 63... a4 {[%emt 0:00:00]} 64. Be6 {[%emt 0:00:06]} Bxe6 {[%emt 0:00:00]} 65. dxe6 {[%emt 0:00:01]} Bb2 {[%emt 0:00:00]} 66. Kd5 {[%emt 0:00:08]} Bxa3 {[%emt 0:00:00]} 67. Bxd6+ {[%emt 0:00:02]} Kd8 {[%emt 0:00:00]} 68. Kc6 {[%emt 0:00:12]} Ke8 {[%emt 0:00:00]} 69. e7 {[%emt 0:00:03]} ({Weaker is} 69. Bxc5 Bxc5 70. Ne4 (70. Kxc5 $2 {perishes.} a3 $19) 70... Be7 $11) 69... Bb2 {[%emt 0:00:00]} 70. Ne6 {[%emt 0:00:01]} 1-0